{"text_format":"1","workbook":"xlsx","n_sheets":12,"sheets":["別紙－１","別紙ー１－２（局内）","別紙ー１－２（全国）","別紙－２","別紙－３","別添","別紙－４","別紙－５","別紙－６","別紙－７","別紙－７（参考様式）","別紙－８"],"not_rendered":{"charts":0,"images":0,"macros":1,"external_links":86,"defined_names":2949,"comments":0,"pivot_tables":0},"unopened":[],"bounds":{"document_bytes":16777216,"sheet_cells":100000,"rows_first":2000,"rows_last":500,"rows_between":2000,"halvings":0,"cell_chars":16384,"cell_head_chars":4096},"cells_cut":0,"cells_raw":0,"read":"whole","date_system":"1900"}

{"sheet":"別紙－１","index":0,"n_rows":29,"n_cols":13,"rows_kept":29,"cut":false,"hidden":false,"merged":[[20,5,20,6],[22,5,22,6],[0,12,0,13],[8,10,8,13],[2,0,2,13],[6,0,6,1],[5,3,5,4],[5,6,5,7],[6,3,6,4],[6,6,6,7],[10,2,10,12],[16,5,16,6],[18,5,18,6]]}
[null,null,null,null,null,null,null,null,null,null,null,null,"別紙－１"]
[]
["入　　札　　書"]
[]
["入札金額"]
[null,null,"億","千",null,"百","十",null,"万","千","百","十","円"]
["金　額"]
[]
[null,null,null,null,null,null,null,null,null,null,"（消費税を含まない。）"]
[]
[null,"件　名 ：","令和８年度　青森労働局貨物輸送業務委託（単価契約）"]
[]
[null,"上記のとおり入札説明書及び仕様書等を承諾のうえ入札します。"]
[]
[null,"　令和 　　年 　　月 　　日"]
[]
[null,null,null,null,null,"住    所"]
[]
[null,null,null,null,null,"商    号"]
[]
[null,null,null,null,null,"代 表 者"]
[]
[null,null,null,null,null,"代 理 人"]
[]
[null,"支出負担行為担当官"]
[null,"　青森労働局総務部長　殿"]
[]
["（注意）業務の履行に要する一切の諸経費を含め金額を見積もること。"]
["　　　　人件費には賃金・最低賃金上昇予定分を含め金額を見積もること。"]

{"sheet":"別紙ー１－２（局内）","index":1,"n_rows":27,"n_cols":7,"rows_kept":27,"cut":false,"hidden":false,"merged":[[25,2,25,6],[26,2,26,6],[1,1,1,6],[2,1,2,6],[3,1,3,3],[22,1,22,5],[23,2,23,6],[24,2,24,6]]}
[null,null,null,null,null,null,"別紙－1－2"]
[null,"入札内訳書１"]
[null,"１　貨物（ジュラルミンケース）輸送"]
[null,"拠点",null,null,"往復料金\n（単価）","年間日数\n（見込）","金額\n（税抜）"]
[null,1,"青森労働局","青森労働基準監督署",null,241,""]
[null,2,"青森労働局","弘前労働基準監督署",null,241,""]
[null,3,"青森労働局","八戸労働基準監督署",null,241,""]
[null,4,"青森労働局","五所川原労働基準監督署",null,241,""]
[null,5,"青森労働局","十和田労働基準監督署",null,241,""]
[null,6,"青森労働局","むつ労働基準監督署",null,241,""]
[null,7,"青森労働局","青森公共職業安定所",null,241,""]
[null,8,"青森労働局","八戸公共職業安定所",null,241,""]
[null,9,"青森労働局","弘前公共職業安定所",null,241,""]
[null,10,"青森労働局","むつ公共職業安定所",null,241,""]
[null,11,"青森労働局","野辺地公共職業安定所",null,241,""]
[null,12,"青森労働局","五所川原公共職業安定所",null,241,""]
[null,13,"青森労働局","三沢公共職業安定所",null,241,""]
[null,14,"青森労働局","三沢公共職業安定所\n十和田出張所",null,241,""]
[null,15,"青森労働局","黒石公共職業安定所",null,241,""]
[null,16,"青森公共職業安定所","ハローワークヤングプラザ",null,241,""]
[null,17,"八戸公共職業安定所","三戸町地域職業相談室",null,241,""]
[null,18,"三沢公共職業安定所","三沢公共職業安定所\n十和田出張所",null,241,""]
[null,"入札内訳書１の合計（消費税抜）"]
[null,null,"※別紙－１入札書に添付してください。"]
[null,null,"※電子入札の場合は、このファイルを電子調達システムで提出してください。"]
[null,null,"※往復料金（単価）×　年間日数（見込）＝　金額（税抜）"]
[null,null,"※年間数量はあくまで見込数であり、実際の数量を保証するものではありません。"]

{"sheet":"別紙ー１－２（全国）","index":2,"n_rows":21,"n_cols":24,"rows_kept":21,"cut":false,"hidden":false,"merged":[[17,2,17,23],[18,2,18,23],[19,2,19,23],[20,2,20,23],[11,1,11,2],[12,1,12,2],[13,1,13,2],[14,13,14,16],[14,17,14,23],[16,1,16,2],[16,3,16,7],[10,1,10,2],[0,22,0,23],[1,1,1,23],[2,1,2,16],[3,1,4,2],[3,3,3,9],[3,10,3,16],[3,17,3,23],[5,1,5,2],[6,1,6,2],[7,1,7,2],[8,1,8,2],[9,1,9,2]]}
[null,null,null,null,null,null,null,null,null,null,null,null,null,null,null,null,null,null,null,null,null,null,{"$f":"'別紙ー１－２（局内）'!G1","v":"別紙－1－2"}]
[null,"入札内訳書２"]
[null,"２　全国輸送"]
[null,"地域",null,"輸送料単価（円）",null,null,null,null,null,null,"予定数量",null,null,null,null,null,null,"金額（円）（税抜）"]
[null,null,null,"60ｻｲｽﾞ","80ｻｲｽﾞ","100ｻｲｽﾞ","120ｻｲｽﾞ","140ｻｲｽﾞ","160ｻｲｽﾞ","170ｻｲｽﾞ","60ｻｲｽﾞ","80ｻｲｽﾞ","100ｻｲｽﾞ","120ｻｲｽﾞ","140ｻｲｽﾞ","160ｻｲｽﾞ","170ｻｲｽﾞ","60ｻｲｽﾞ","80ｻｲｽﾞ","100ｻｲｽﾞ","120ｻｲｽﾞ","140ｻｲｽﾞ","160ｻｲｽﾞ","170ｻｲｽﾞ"]
[null,"青森県内",null,null,null,null,null,null,null,null,150,140,10,30,10,10,10,{"$f":"IF(D6=\"\",\"\",D6*K6)","v":""},null,null,null,null,{"$f":"IF(I6=\"\",\"\",I6*P6)","v":""},""]
[null,"北海道",null,null,null,null,null,null,null,null,1,1,1,1,1,1,1,"",null,null,null,null,"",""]
[null,"東北（岩手・宮城・秋田・山形・福島）",null,null,null,null,null,null,null,null,1,1,1,1,1,1,1,"",null,null,null,null,"",""]
[null,"関東・甲信越（山梨・埼玉・千葉・長野・東京・神奈川・新潟・栃木・群馬・茨城）",null,null,null,null,null,null,null,null,1,1,1,1,1,1,1,"",null,null,null,null,"",""]
[null,"中部・北陸（富山・石川・岐阜・静岡・愛知・三重・福井）",null,null,null,null,null,null,null,null,1,1,1,1,1,1,1,"",null,null,null,null,"",""]
[null,"関西（奈良・京都・滋賀・大阪・兵庫・和歌山）",null,null,null,null,null,null,null,null,1,1,1,1,1,1,1,"",null,null,null,null,"",""]
[null,"中国（山口・広島・岡山・鳥取・島根）",null,null,null,null,null,null,null,null,1,1,1,1,1,1,1,"",null,null,null,null,"",""]
[null,"四国（愛媛・香川・徳島・高知）",null,null,null,null,null,null,null,null,1,1,1,1,1,1,1,"",null,null,null,null,"",""]
[null,"九州（福岡・大分・佐賀・長崎・宮崎・熊本・鹿児島）",null,null,null,null,null,null,null,null,1,1,1,1,1,1,1,"",null,null,null,null,"",""]
[null,null,null,null,null,null,null,null,null,null,null,null,null,"入札内訳書２の合計（税抜）"]
[]
[null,"入札額合計\n（入札内訳書１及び２の合計）"]
[null,null,"※別紙－１入札書に添付してください。"]
[null,null,"※電子入札の場合は、このファイルを電子調達システムで提出してください。"]
[null,null,"※輸送料単価　×　予定数量　＝　金額"]
[null,null,"※予定数量はあくまで見込数であり、実際の数量を保証するものではありません。"]

{"sheet":"別紙－２","index":3,"n_rows":30,"n_cols":10,"rows_kept":30,"cut":false,"hidden":false,"merged":[[2,0,2,9],[11,0,11,9],[13,0,13,1],[13,3,13,9],[4,0,4,1],[5,0,5,2],[5,3,5,5],[4,2,4,5],[9,7,9,8],[5,8,5,9]]}
[null,null,null,null,null,null,null,null,null,"別紙－２"]
[]
["委　 任　 状"]
[]
["（住所）"]
["私は、（氏名）",null,null,null,null,null,null,null,"　を代理人と定め"]
[]
["下記事項の入札及び見積りに関する一切の権限を委任します。"]
[]
[null,null,null,null,null,null,null,"受任者印"]
[]
["記"]
[]
["（委任事項）",null,null,"令和８年度　青森労働局貨物輸送業務委託（単価契約）"]
[]
["　　令和 　　年 　　月 　　日"]
[]
[null,null,null,null,"住    所"]
[]
[null,null,null,null,"商    号"]
[]
[null,null,null,null,"代 表 者"]
[]
["　支出負担行為担当官"]
["　　青森労働局総務部長　　殿"]
[]
[]
[]
[]
["（注意）　入札書提出時に提出すること。日付は、提出日を記入すること。"]

{"sheet":"別紙－３","index":4,"n_rows":25,"n_cols":5,"rows_kept":25,"cut":false,"hidden":false,"merged":[[21,0,21,4],[2,3,2,4],[10,0,10,4],[12,0,12,4],[14,0,14,4],[16,1,16,4],[4,0,4,2]]}
[null,null,null,null,"別紙－３"]
[]
[null,null,null,"令和　　年　　月　　日"]
[]
["　　支出負担行為担当官\n　　　青森労働局総務部長　　殿"]
[]
[null," 　　　　　　　　 住        所"]
[null," 　　　　　　　　 商号又は名称"]
[null," 　　　　　　　　 代 表 者 氏 名"]
[]
["電子入札案件の紙入札方式での参加について"]
[]
["　貴部局発注の下記入札案件について、電子調達システムを利用して入札に参加できないので、紙入札方式での参加をいたします。"]
[]
["記"]
[]
["１　入札案件名","令和８年度　青森労働局貨物輸送業務委託（単価契約）"]
[]
["２　電子調達システムでの参加ができない理由"]
["　（記入例）"]
["　　・認証カードの申請中だが、手続きが遅れているため"]
[]
["３　紙入札業者登録内容（別添「紙入札業者登録票」のとおり）"]
["　※電子入札システムに登録する必要があるため、すべて記入すること（⑦及び⑯については、該当な"]
["　　き場合は省略可）。"]

{"sheet":"別添","index":5,"n_rows":25,"n_cols":2,"rows_kept":25,"cut":false,"hidden":false,"merged":[[2,0,2,1]]}
[null,"（別添）"]
[]
["紙　入　札　業　者　登　録　票"]
[]
["①　資格審査登録番号"]
["②　企業名称"]
["④　所在地"]
["⑤　代表者職名"]
["⑥　代表者氏名"]
["⑦　部署名"]
["⑧　代表者電話番号"]
["⑨　代表者ＦＡＸ番号"]
["⑩　連絡先名称"]
["⑪　連絡先氏名"]
["⑫　連絡先郵便番号"]
["⑬　連絡先住所"]
["⑭　連絡先電話番号"]
["⑮　連絡先ＦＡＸ番号"]
["⑯　連絡先メールアドレス"]
[]
[]
["※　電子入札システムでの参加業者については、提出は不要。"]
["※「資格審査登録番号」には、資格審査結果通知書（全省庁統一資格）の「業者コー"]
["　ド」を記入すること。"]
["※「部署名」は、代表者の所属部署が特段ない場合には空欄でもよい。"]

{"sheet":"別紙－４","index":6,"n_rows":35,"n_cols":5,"rows_kept":35,"cut":false,"hidden":false,"merged":[[2,3,2,4],[4,0,4,2],[10,0,10,4],[12,0,12,4]]}
[null,null,null,null,"別紙－４"]
[]
[null,null,null,"令和　　年　　月　　日"]
[]
["　　支出負担行為担当官\n　　　青森労働局総務部長　　殿"]
[]
[null," 　　　　　　　　 住        所"]
[null," 　　　　　　　　 商号又は名称"]
[null," 　　　　　　　　 代 表 者 氏 名"]
[]
["競争参加資格等確認関係書類の紙による提出について"]
[]
["　令和８年３月１２日開札の「令和８年度　青森労働局貨物輸送業務委託（単価契約）」に係る競争参加資格等確認関係書類については、令和  年  月  日紙媒体により提出いたします。"]
[]
[]
[]
[]
[]
[]
[]
[]
[]
[]
[]
[]
[]
[]
[]
[]
[]
[]
[]
["（注意）　電子調達システムで入札参加をする場合であって、かつ別紙－５の競争参加資格等確認関係"]
["　　　　書類を紙によって提出する場合のみこの様式を電子調達システムにより提出すること。"]
["　　　　　なお、処理を行わない場合、同システムによる入札ができなくなるので、留意すること。"]

{"sheet":"別紙－５","index":7,"n_rows":20,"n_cols":1,"rows_kept":20,"cut":false,"hidden":false,"merged":[]}
["別紙－５"]
[]
["競争参加資格等確認関係書類"]
[]
["　以下１～５の書類を入札説明書６（２）で定める期限までに提出してください。"]
[]
["１　厚生労働省大臣官房会計課長から通知された資格審査結果通知書（全省庁統一資格）の写し"]
[]
["２　自己申告書（別紙－６）"]
[]
["３　誓約書（別紙－７）"]
["　　※　法人の場合は役員の氏名及び生年月日が明らかとなる資料（エクセル等で任意様式にて"]
["　　　作成したもので可）を添付すること。"]
[]
["４　保険料納付に係る申立書（別紙－８）"]
[]
["５　その他参考資料　会社履歴書又はこれに類する書類（例：会社概要、パンフレット）"]
["　　※　任意提出。支出負担行為担当官の求めに応じ提出すること。"]
[]
["※　提出部数　　　　　　各１部"]

{"sheet":"別紙－６","index":8,"n_rows":34,"n_cols":1,"rows_kept":34,"cut":false,"hidden":false,"merged":[]}
["別紙－６"]
[]
["自己申告書"]
[]
["　下記の内容について誓約いたします。"]
["　なお、この誓約書に虚偽があったことが判明した場合、又は報告すべき事項を報告しなかった"]
["ことが判明した場合には、本契約を解除されるなど当方が不利益を被ることとなっても、異議は"]
["一切申し立てません。"]
[]
["記"]
[]
["１　厚生労働省から指名停止の措置を受けている期間中でないこと。"]
["２　過去１年以内に、当社又はその役員若しくは使用人が、業務に関し、厚生労働省所管法令違"]
["　反により行政処分を受け又は送検されていないこと。"]
["３　事業の実施に当たっては、各種法令を遵守すること。"]
["４　契約締結後、当社又はその役員若しくは使用人が、業務に関し、厚生労働省所管法令違反に"]
["　より行政処分を受け又は送検された場合には、速やかに報告すること。"]
["５　前記１から４について、本契約について当社が再委託を行った場合の再委託先についても同"]
["　様であること。"]
[]
[]
[]
[]
[]
["令和　　年　　月　　日　　"]
[]
["　　　　　　　　　　　　　　住　　　　所"]
[]
["　　　　　　　　　　　　　　商号又は名称"]
[]
["　　　　　　　　　　　　　　代 表 者 氏 名　　　　　　　　　　　　　　　　　　　　　"]
[]
["支出負担行為担当官"]
["　青森労働局総務部長　　殿"]

{"sheet":"別紙－７","index":9,"n_rows":44,"n_cols":1,"rows_kept":44,"cut":false,"hidden":false,"merged":[[5,1,6,1],[5,2,6,2],[5,3,6,3],[19,1,19,2],[20,1,20,2]]}
["別紙－７"]
[]
["誓 約 書"]
[]
[]
["　□　私"]
["　□　当社"]
["は、下記１及び２のいずれにも該当しません。また、将来においても該当することはありません。"]
["　この誓約書が虚偽であり、又はこの誓約に反したことにより、当方が不利益を被ることとなっても、"]
["異議は一切申し立てません。"]
["　また、当方の個人情報を警察に提供することについて同意します。"]
[]
["記"]
[]
["１　契約の相手方として不適当な者"]
["（１）法人等（個人、法人又は団体をいう。）の役員等（個人である場合はその者、法人である場合は"]
["　　役員又は支店若しくは営業所（常時契約を締結する事務所をいう。）の代表者、団体である場合は"]
["　　代表者、理事等、その他経営に実質的に関与している者をいう。）が、暴力団（暴力団員による不"]
["　　当な行為の防止等に関する法律（平成３年法律第77号）第２条第２号に規程する暴力団をいう。以"]
["　　下同じ。）又は暴力団員（同法第２条第６号に規定する暴力団員をいう。以下同じ。）であるとき"]
["（２）役員等が、自己、自社若しくは第三者の不正の利益を図る目的又は第三者に損害を加える目的を"]
["　　もって、暴力団又は暴力団員を利用するなどしているとき"]
["（３）役員等が、暴力団又は暴力団員に対して、資金等を供給し、又は便宜は供与するなど直接的ある"]
["　　いは積極的に暴力団の維持、運営に協力し、若しくは関与しているとき"]
["（４）役員等が、暴力団又は暴力団員であることを知りながらこれを不当に利用するなどしているとき"]
["（５）役員等が、暴力団又は暴力団員と社会的に非難されるべき関係を有しているとき"]
[]
["２　契約の相手方として不適当な行為をする者"]
["（１）暴力的な要求行為を行う者"]
["（２）法的な責任を超えた不当な要求行為を行う者"]
["（３）取引に関して脅迫的な言動をし、又は暴力を用いる行為を行う者"]
["（４）偽計又は威力を用いて契約担当官等の業務を妨害する行為を行う者"]
["（５）その他前各号に準ずる行為を行う者"]
[]
[]
["令和　　年 　　月 　　日"]
[]
["　　　　　　　住所（又は所在地）"]
["　　　　　　　社名及び代表者名　　　　　　　　　　　　　　　　　　　　　　　"]
["　　　　　　　生年月日（個人の場合のみ）　　　　　　　年　　　月　　日生"]
[]
[]
["　※法人の場合は役員の氏名及び生年月日が明らかとなる資料（エクセル等で任意様式にて作成したも"]
["　ので可）を添付すること。"]

{"sheet":"別紙－７（参考様式）","index":10,"n_rows":26,"n_cols":5,"rows_kept":26,"cut":false,"hidden":false,"merged":[[7,1,8,2],[7,4,8,4],[0,1,0,4],[1,1,1,4],[3,2,3,3],[5,1,6,2],[5,4,6,4],[9,1,10,2],[9,4,10,4],[11,1,12,2],[11,4,12,4],[13,1,14,2],[13,4,14,4],[15,1,16,2],[15,4,16,4],[17,1,18,2],[17,4,18,4],[19,1,20,2],[19,4,20,4],[21,1,22,2],[21,4,22,4],[23,1,24,2],[23,4,24,4],[25,1,26,2],[25,4,26,4]]}
[null,"【添付書類の参考様式】"]
[null,"役　員　等　名　簿"]
[]
[null,"法人名："]
[]
[null,"役職名",null,"（フリガナ）","生年月日"]
[null,null,null,"氏名"]
[1]
[]
[2]
[]
[3]
[]
[4]
[]
[5]
[]
[6]
[]
[7]
[]
[8]
[]
[9]
[]
[10]

{"sheet":"別紙－８","index":11,"n_rows":24,"n_cols":1,"rows_kept":24,"cut":false,"hidden":false,"merged":[]}
["別紙－８"]
[]
["保険料納付に係る申立書"]
[]
["　当社は、直近２年間に支払うべき社会保険料（厚生年金保険、健康保険（全国健康保険協会管"]
["掌のもの）、船員保険及び国民年金の保険料をいう。）及び直近２保険年度に支払うべき労働保"]
["険料（労働者災害補償保険及び雇用保険の保険料をいう。）について、一切滞納がないことを申"]
["し立てます。"]
["　なお、この申立書に虚偽内容が認められたときは、履行途中にあるか否かを問わず当社に対す"]
["る一切の契約が解除され、損害賠償金を請求され、併せて競争参加資格の停止処分を受けること"]
["に異議はありません。"]
["　また、当該保険料の納付事実を確認するために関係書類の提示・提出を求められたときは、速"]
["やかに対応することを確約いたします。"]
[]
["令和　　年　　月　　日　　"]
[]
["　　　　　　　　　　　　　　住　　　　所"]
[]
["　　　　　　　　　　　　　　商号又は名称"]
[]
["　　　　　　　　　　　　　　代 表 者 氏 名　　　　　　　　　　　　　　　　　　　　　"]
[]
["支出負担行為担当官"]
["　青森労働局総務部長　　殿"]